fUSD/lending_fUSD_20250911
["ID","MTS","AMOUNT","RATE_DAILY","PERIOD"]
[384842899,1757586640259,-164.2842427,0.00028018,7]
[384842900,1757586640269,-414.66301533,0.00028018,7]
[384842901,1757586640278,-2144.14,0.00028018,7]
[384842902,1757586640287,-896.97,0.00028018,7]
[384842903,1757586640296,-1166.73,0.00028018,7]
[384842904,1757586640306,-1338.27,0.00028018,7]
[384842905,1757586640315,-726.88,0.00028018,7]
[384842906,1757586640324,-997.82,0.00028018,7]
[384842907,1757586640333,-400.0,0.00028018,7]
[384842908,1757586640342,-244.39702224,0.00028018,7]
[384842909,1757586640352,-2275.68,0.00028018,7]
[384842910,1757586640361,-493.30308552,0.00028018,7]
[384842911,1757586640383,-1289.55691448,0.00028018,7]
[384842912,1757586640392,-2205.78,0.00028018,7]
[384842913,1757586640401,-400.0,0.00028018,7]
[384842914,1757586640410,-400.0,0.00028018,7]
[384842915,1757586640419,-711.0295994,0.00028018,7]
[384843061,1757586643302,-586.35316159,0.00028018,7]
[384843342,1757586646049,-400.07568,0.00028018,7]
[384843720,1757586662293,300.0,0.000297,120]
[384843721,1757586662965,150.0,0.000297,120]
[384843722,1757586665692,195.0,0.000297,120]
[384843723,1757586665846,500.0,0.000297,120]
[384843724,1757586665956,500.0,0.00027336,120]
[384843725,1757586666116,225.0278244,0.00027725,120]
[384843726,1757586666670,150.0,0.000297,120]
[384843742,1757586697953,163.14,0.00027091,120]
[384843749,1757586878520,-151.0,0.00021609,2]
[384843750,1757586880093,-83.59,0.00021609,2]
[384843751,1757587010552,179.0,0.0002816,120]
[384843752,1757587010831,179.0,0.0002815,120]
[384843753,1757587011058,179.0,0.0002814,120]
[384843754,1757587011511,179.0,0.0002952,120]
[384843755,1757587011975,179.0,0.0002951,120]
[384843756,1757587012425,179.0,0.000295,120]
[384843757,1757587036672,158.25,0.00013444,2]
[384843758,1757587055110,158.0,0.00019614,2]
[384843761,1757587200517,1306.21922,0.00030136,120]
[384843763,1757587279101,151.0,0.00030137,120]
[384843764,1757587280356,1690.6,0.0003,120]
[384843765,1757587308304,151.0,0.00030137,120]
[384843769,1757587433971,151.0,0.00030137,120]
[384843773,1757587567917,155.32,0.00016438,2]
[384843775,1757587638900,2500.0,0.00030136,120]
[384843776,1757587651665,2500.0,0.00030136,120]
[384843779,1757587715488,223.23,0.00026326,120]
[384843780,1757587715692,223.23,0.00029617,120]
[384843781,1757587720815,-225.23799484,0.00022,7]
[384843782,1757587729787,150.5,0.00027998,120]
[384843783,1757587729983,150.5,0.00027988,120]
[384843784,1757587730423,150.5,0.00027978,120]
[384843785,1757587730886,272.42,0.0002933,120]
[384843789,1757587828483,-170.37,0.00022,7]
[384843796,1757587832170,-794.76384075,0.00022,7]
[384843797,1757587832182,-314.62816441,0.00022,7]
[384843798,1757587832192,-250.0,0.00022376,2]
[384843799,1757587832201,-151.0,0.00022708,2]
[384843800,1757587832210,-39.33518268,0.00022753,2]
[384843801,1757587832222,-123.14856902,0.00022753,2]
[384843802,1757587832231,-518.28981321,0.00022753,2]
[384843803,1757587832241,-245.02509433,0.00023482,2]
[384843804,1757587832250,-292.26652344,0.00023482,2]
[384843805,1757587832435,-647.54634351,0.00023482,2]
[384843806,1757587832445,-141.29847981,0.000239,2]
[384843807,1757587832491,-251.6559542,0.000239,2]
[384843808,1757587832542,-107.04556599,0.000239,2]
[384843809,1757587832552,-174.32193401,0.000242,2]
[384843810,1757587832564,-75.67806599,0.000242,2]
[384843811,1757587832574,-161.41,0.00024658,2]
[384843812,1757587832584,-149.20047807,0.00024899,2]
[384843819,1757587838367,-1050.79952193,0.00024899,2]
[384843820,1757587838376,-151.92,0.000249,2]
[384843821,1757587838385,-2243.92295529,0.000249,2]
[384843822,1757587838395,-300.0,0.00025027,2]
[384843823,1757587838405,-500.0,0.00025028,2]
[384843824,1757587838415,-299.99,0.00025028,7]
[384843825,1757587838425,-150.0,0.00026255,7]
[384843826,1757587838434,-616.19,0.00026641,2]
[384843827,1757587838444,-250.0,0.00026649,2]
[384843828,1757587838454,-414.57,0.00026664,2]
[384843829,1757587838463,-2479.59,0.00026799,2]
[384843830,1757587838472,-2000.0,0.000268,2]
[384843831,1757587838482,-1380.22,0.00026812,2]
[384843832,1757587838492,-248.71531821,0.00026934,2]
[384843833,1757587838501,-1000.0,0.00026946,2]
[384843834,1757587838511,-255.83,0.00026946,2]
[384843835,1757587838520,-167.0,0.00027,7]
[384843836,1757587838530,-2657.99499301,0.00027,7]
[384843837,1757587838539,-2384.0,0.00027018,2]
[384843838,1757587838549,-1680.0,0.00027099,2]
[384843839,1757587838558,-445.0,0.000271,2]
[384843840,1757587838568,-200.0,0.000271,7]
[384843841,1757587838578,-420.0,0.00027112,2]
[384843842,1757587838587,-258.93,0.00027178,2]
[384843843,1757587838597,-166.67,0.00027178,2]
[384843844,1757587838606,-410.01,0.00027178,2]
[384843845,1757587838615,-847.06,0.00027425,30]
[384843846,1757587838625,-1300.0,0.000275,10]
[384843847,1757587838634,-2723.98250701,0.0002758,2]
[384843848,1757587838643,-2600.0,0.000276,10]
[384843849,1757587838653,-167.0,0.00027671,14]
[384843850,1757587838666,-3900.0,0.000277,10]
[384843851,1757587838675,-2383.0,0.00027705,7]
[384843852,1757587838683,-5200.0,0.000278,10]
[384843853,1757587838693,-2243.92295528,0.00027827,8]
[384843854,1757587838704,-9188.54513339,0.00027886,2]
[384843855,1757587838713,-162.380719,0.00027892,2]
[384843856,1757587838722,-316.85521497,0.00027894,2]
[384843857,1757587838732,-1027.28647314,0.00027898,2]
[384843858,1757587838742,-6500.0,0.000279,10]
[384843859,1757587838752,-500.0,0.00027908,2]
[384843860,1757587838761,-158.51144417,0.00027908,2]
[384843861,1757587838770,-425.88467431,0.00027918,2]
[384843862,1757587838780,-2512.79479391,0.00027918,2]
[384843863,1757587838790,-1027.28647309,0.00027961,2]
[384843864,1757587838801,-502.11604635,0.00027973,5]
[384843865,1757587838810,-1066.36123063,0.00027975,15]
[384843866,1757587838820,-159.97,0.00027976,2]
[384843867,1757587838829,-47201.68626766,0.00027976,2]
[384843868,1757587838846,-602.94506114,0.00027976,2]
[384843940,1757587841032,-5368.49041217,0.00027976,2]
[384843943,1757587841043,-818.06783151,0.00027976,2]
[384843946,1757587841062,-5944.86029367,0.00027976,2]
[384843948,1757587841074,-1504.306104,0.00027976,2]
[384844169,1757587843254,-160.39645633,0.00027948,2]
[384844173,1757587843475,-9028.14867703,0.00027948,2]
[384844174,1757587843485,-3069.50545875,0.00027976,2]
[384844175,1757587843495,-656.99,0.00027976,2]
[384844176,1757587843504,-656.99,0.00027976,2]
[384844177,1757587843513,-416.28112568,0.00027985,2]
[384844178,1757587843523,-400.0,0.00027985,7]
[384844179,1757587843532,-2054.8,0.00027985,7]
[384844180,1757587843542,-1282.51,0.00027985,7]
[384844181,1757587843551,-404.28704035,0.00027985,7]
[384844182,1757587843561,-400.0,0.00027985,7]
[384844183,1757587843570,-400.0,0.00027985,7]
[384844184,1757587843580,-400.0,0.00027985,7]
[384844185,1757587843590,-400.0,0.00027985,7]
[384844186,1757587843600,-500.0,0.00027985,2]
[384844188,1757587843610,-475.37400694,0.00027985,2]
[384844190,1757587843619,-1269.26,0.00027985,7]
[384844192,1757587843628,-1950.17307354,0.00027986,2]
[384844193,1757587843637,-856.95249218,0.00027986,7]
[384844231,1757587846228,-878.3,0.00027985,7]
[384844232,1757587846238,-10412.7,0.00027986,7]
[384844233,1757587846252,-2591.14121284,0.00027986,7]
[384844234,1757587846498,-400.0,0.00027985,7]
[384844235,1757587846508,-36277.32206455,0.00027986,7]
[384845081,1757587863532,553.45133682,0.000297,120]
[384845083,1757587924950,500.0,0.00030136,120]
[384845084,1757587932475,500.0,0.00030136,120]
[384845085,1757587939262,500.0,0.00030136,120]
[384845086,1757587960414,150.03,0.00013484,2]
[384845087,1757587973020,500.0,0.00030136,120]
[384845088,1757587980031,500.0,0.00030136,120]
[384845090,1757587987621,500.0,0.00030136,120]
[384845091,1757587994678,500.0,0.00030136,120]
[384845092,1757588003055,1000.0,0.00030136,120]
[384845093,1757588013678,500.0,0.00030136,120]
[384845094,1757588019188,500.0,0.00030136,120]
[384845095,1757588026086,500.0,0.00030136,120]
[384845096,1757588032028,500.0,0.00030136,120]
[384845097,1757588039358,500.0,0.00030136,120]
[384845100,1757588063877,1000.0,0.00030136,120]
[384845102,1757588070567,1000.0,0.00030136,120]
[384845103,1757588078200,5000.0,0.00030136,120]
[384845104,1757588085023,1000.0,0.00030136,120]
[384845105,1757588091578,1000.0,0.00030136,120]
[384845107,1757588099852,1000.0,0.00030136,120]
[384845110,1757588115381,4600.0,0.00030136,120]
[384845113,1757588136251,4000.0,0.00030136,120]
[384845182,1757588626200,162.4,0.00016438,2]
[384845200,1757588779395,163.14,0.00026439,120]
[384845225,1757588948146,-151.0,0.00023004,2]
[384845226,1757588948167,-151.0,0.00023028,2]
[384845227,1757588948188,-151.0,0.00023073,2]
[384845228,1757588948209,-151.0,0.00023109,2]
[384845229,1757588948231,-300.0,0.00023288,2]
[384845230,1757588948251,-493.24055252,0.00023339,2]
[384845231,1757588948273,-2400.3962266,0.000249,2]
[384845232,1757588948293,-250.0,0.00025406,2]
[384845233,1757588948314,-250.0,0.00025462,2]
[384845234,1757588948335,-158.21,0.00025524,2]
[384845235,1757588948356,-150.00000001,0.00025668,2]
[384845236,1757588948380,-150.0,0.00025668,2]
[384845237,1757588948400,-57.19064015,0.00025668,2]
[384845258,1757589031404,-92.80935985,0.00025668,2]
[384845259,1757589031414,-150.0,0.00025668,2]
[384845260,1757589031423,-150.0,0.00025668,2]
[384845261,1757589031433,-150.0,0.00025668,2]
[384845262,1757589031443,-433.0,0.00026,2]
[384845263,1757589031452,-104.24042064,0.00026252,3]
[384845264,1757589031463,-92.26957936,0.00026252,3]
[384845265,1757589031472,-200.0,0.00026385,2]
[384845266,1757589031481,-177.31,0.00026418,2]
[384845267,1757589031492,-168.0,0.00026433,2]
[384845268,1757589031506,-18.89281649,0.00026479,7]
[384845270,1757589031786,-131.10718351,0.00026479,7]
[384845271,1757589031795,-325.67870469,0.000265,2]
[384845272,1757589031806,-182.53129531,0.000265,2]
[384845273,1757589031815,-671.46585844,0.00026562,2]
[384845276,1757589031849,-2630.52414156,0.00026562,2]
[384845278,1757589031859,-1200.0,0.00026676,2]
[384845280,1757589031868,-250.0,0.00026677,2]
[384845281,1757589031878,-11100.07520067,0.00026677,2]
[384845282,1757589031900,-1098.99573606,0.00026677,2]
[384845283,1757589031912,-3026.35286021,0.00026677,2]
[384845284,1757589031923,-3683.07547071,0.00026677,2]
[384845285,1757589031941,-438.0,0.00026677,2]
[384845286,1757589031953,-2406.80976211,0.00026677,2]
[384845287,1757589031976,-477.93930329,0.00026677,2]
[384845288,1757589031987,-99.77166695,0.00026677,2]
[384845289,1757589031997,-195.8369468,0.0002668,2]
[384845290,1757589032008,-1095.58800653,0.0002668,2]
[384845293,1757589032032,-401.79,0.0002668,2]
[384845294,1757589032043,-1244.61667068,0.0002668,2]
[384845295,1757589032068,-289.22837599,0.0002668,2]
[384845296,1757589032078,-10.76162401,0.0002668,2]
[384845304,1757589037253,159.36,0.00013364,2]
[384845374,1757589038369,-989.22837599,0.0002668,2]
[384845375,1757589038379,-330.67,0.00026681,2]
[384845377,1757589038388,-394.79,0.00026696,2]
[384845379,1757589038397,-248.71531821,0.00026737,2]
[384845381,1757589038405,-3056.64196983,0.00026787,2]
[384845383,1757589038414,-71640.42269914,0.0002679,2]
[384845384,1757589038424,-20699.97735712,0.00026791,2]
[384845386,1757589038436,-4250.20118944,0.00026791,2]
[384845388,1757589038445,-7422.78732691,0.0002681,2]
[384845390,1757589038456,-16968.06539749,0.0002681,2]
[384845392,1757589038465,-5563.43459957,0.00026816,2]
[384845395,1757589038493,-1323.27193708,0.00026816,2]
[384845484,1757589039574,-1365.96682191,0.00026816,2]
[384845497,1757589039685,-1460.09209656,0.00026816,2]
[384845812,1757589042686,-15237.41309144,0.00026816,2]
[384845814,1757589042695,-1605.73001247,0.00026818,2]
[384845816,1757589042705,-3056.64196983,0.00026819,2]
[384845818,1757589042714,-3056.64196983,0.00026826,2]
[384845820,1757589042723,-24950.17854656,0.00026832,2]
[384845822,1757589042734,-24950.17854656,0.00026836,2]
[384845824,1757589042744,-171.18983111,0.00026845,2]
[384845826,1757589042753,-24950.17854656,0.0002686,2]
[384845828,1757589042762,-24950.17854656,0.00026874,2]
[384845830,1757589042771,-71640.42269914,0.00026877,2]
[384845832,1757589042780,-71640.42269914,0.00026885,2]
[384845834,1757589042790,-24390.8527244,0.00026888,2]
[384845836,1757589042799,-1605.73001247,0.00026892,2]
[384845838,1757589042808,-1605.73001247,0.00026892,2]
[384845840,1757589042817,-61215.71747928,0.00026904,2]
[384845843,1757589042836,-5553.75007416,0.00026904,2]
[384845850,1757589042895,-1584.69266535,0.00026904,2]
[384846121,1757589045612,-3286.26248035,0.00026904,2]
[384846123,1757589045621,-1605.73001247,0.00026906,2]
[384846125,1757589045630,-3131.0,0.00026906,2]
[384846127,1757589045639,-171.18983111,0.00026907,2]
[384846129,1757589045648,-171.18983111,0.00026909,2]
[384846131,1757589045657,-8403.2279094,0.00026911,2]
[384846135,1757589045686,-4430.94191996,0.00026911,2]
[384846139,1757589045721,-329.23487999,0.00026911,2]
[384846939,1757589311254,-264.35011601,0.000248,2]
[384846940,1757589311275,-156.42281418,0.000248,2]
[384846941,1757589311303,-812.98544174,0.000249,2]
[384846942,1757589312846,-156.42281418,0.000249,2]
[384846943,1757589314971,-156.53,0.000249,2]
[384846944,1757589317241,-1087.0,0.000249,2]
[384846953,1757589784743,280.86,0.00025869,120]
[384846954,1757589784965,280.86,0.00029102,120]
[384846956,1757589886888,162.4,0.00016438,2]
[384846961,1757589977471,769.0,0.0003013,120]
[384846971,1757590022635,-1821.70308434,0.00024,5]
[384846972,1757590025358,-234.87152271,0.00024,5]
[384846985,1757590081629,6904.72,0.0002085,2]
[384846986,1757590082767,-939.00764123,0.0002085,2]
[384846987,1757590085710,-447.99235877,0.0002085,2]
[384846988,1757590087488,-1158.32636891,0.0002085,2]
[384846989,1757590090236,-753.83,0.0002085,2]
[384846990,1757590092456,-840.84649775,0.0002085,2]
[384846991,1757590096999,-190.42363109,0.0002085,2]
[384846992,1757590098679,-158.25,0.0002085,2]
[384847010,1757590231662,-300.0,0.00020849,2]
[384847011,1757590231672,-1200.0,0.00020849,2]
[384847012,1757590231682,-2698.27851733,0.0002085,2]
[384847013,1757590231693,-6139.90615854,0.0002085,2]
[384847014,1757590231705,-1671.06921485,0.0002085,2]
[384847015,1757590231715,-1680.0,0.0002279,2]
[384847016,1757590231727,-108.49297062,0.00024658,2]
[384847017,1757590231828,-52.89702938,0.00024658,2]
[384847018,1757590231845,-186.73428947,0.000249,2]
[384847019,1757590231855,-2330.05075423,0.000249,2]
[384847020,1757590231867,-51.64296027,0.000249,2]
[384847021,1757590231878,-2053.0,0.00024913,2]
[384847022,1757590231887,-267.5391064,0.00025232,2]
[384847023,1757590231896,-168.0,0.00025318,2]
[384847024,1757590231905,-150.0,0.00025373,2]
[384847025,1757590231916,-150.0,0.00025373,2]
[384847026,1757590231925,-1035.0,0.0002564,2]
[384847027,1757590231934,-444.25,0.00025641,2]
[384847028,1757590231944,-484.89,0.00025641,2]
[384847029,1757590231954,-150.99,0.00025641,2]
[384847031,1757590231963,-1820.26,0.00025641,2]
[384847032,1757590231973,-6772.93,0.00025641,2]
[384847033,1757590231983,-12799.93,0.00025641,2]
[384847034,1757590231992,-177.31,0.00025674,2]
[384847035,1757590232002,-5000.0,0.00025719,2]
[384847036,1757590232011,-150.0,0.00025788,7]
[384847037,1757590232021,-168.0,0.00025806,2]
[384847038,1757590232031,-1000.0,0.00025806,2]
[384847039,1757590232041,-428.0,0.000259,2]
[384847040,1757590232051,-198.0,0.00025995,2]
[384847041,1757590232061,-157.87,0.00026244,2]
[384847042,1757590232071,-198.0,0.00026291,2]
[384847043,1757590232081,-168.0,0.00026335,2]
[384847044,1757590232091,-300.0,0.000264,2]
[384847045,1757590232100,-500.0,0.00026427,2]
[384847047,1757590232110,-358.13,0.00026564,2]
[384847049,1757590232120,-248.71531821,0.00026648,2]
[384847051,1757590232130,-200.0,0.00026667,2]
[384847053,1757590232140,-168.0,0.00026671,2]
[384847055,1757590232150,-837.06529923,0.00026741,2]
[384847057,1757590232159,-1631.73562902,0.00026741,2]
[384847058,1757590232171,-410.18768663,0.00026741,2]
[384847065,1757590232222,-466.77034477,0.00026741,2]
[384847103,1757590237551,-5198.47893232,0.00026741,2]
[384847104,1757590237560,-1835.86129639,0.00026757,2]
[384847105,1757590237569,-56282.0,0.00026767,2]
[384847106,1757590237579,-3245.4588889,0.00026783,2]
[384847107,1757590237590,-300.0,0.000268,9]
[384847108,1757590237599,-1000.0,0.00026835,2]
[384847109,1757590237608,-1000.0,0.00026835,2]
[384847110,1757590237616,-500.0,0.0002684,2]
[384847111,1757590237627,-207.36799335,0.0002684,2]
[384847112,1757590237636,-343.92985775,0.0002684,2]
[384847113,1757590237645,-196.45645505,0.0002684,2]
[384847114,1757590237654,-174.963397,0.0002684,7]
[384847115,1757590237664,-1105.076252,0.0002684,7]
[384847116,1757590237673,-174.963397,0.0002684,7]
[384847117,1757590237954,-1105.076252,0.0002684,7]
[384847118,1757590237964,-1105.076252,0.0002684,7]
[384847119,1757590237973,-1105.076252,0.0002684,7]
[384847120,1757590237982,-174.963397,0.0002684,7]
[384847121,1757590237991,-151.0,0.0002684,7]
[384847123,1757590238002,-174.963397,0.0002684,7]
[384847125,1757590238011,-151.0,0.0002684,7]
[384847127,1757590238020,-161.919338,0.0002684,7]
[384847129,1757590238029,-1105.076252,0.0002684,7]
[384847131,1757590238039,-174.963397,0.0002684,7]
[384847133,1757590238048,-1105.076252,0.0002684,7]
[384847135,1757590238057,-174.963397,0.0002684,7]
[384847136,1757590238066,-1105.076252,0.0002684,7]
[384847138,1757590238075,-1105.076252,0.0002684,7]
[384847140,1757590238084,-174.963397,0.0002684,7]
[384847142,1757590238093,-174.963397,0.0002684,7]
[384847144,1757590238103,-162.177725,0.0002684,7]
[384847146,1757590238112,-151.0,0.0002684,7]
[384847148,1757590238121,-301.444973,0.0002684,7]
[384847150,1757590238130,-301.444973,0.0002684,7]
[384847152,1757590238139,-151.526754,0.0002684,7]
[384847154,1757590238148,-301.444973,0.0002684,7]
[384847156,1757590238157,-301.444973,0.0002684,7]
[384847158,1757590238166,-1843.520675,0.0002684,7]
[384847160,1757590238176,-1843.520675,0.0002684,7]
[384847162,1757590238185,-301.444973,0.0002684,7]
[384847164,1757590238195,-151.0,0.0002684,7]
[384847166,1757590238204,-301.444973,0.0002684,7]
[384847168,1757590238213,-151.0,0.0002684,7]
[384847170,1757590238222,-1843.520675,0.0002684,7]
[384847171,1757590238231,-1843.520675,0.0002684,7]
[384847172,1757590238240,-301.444973,0.0002684,7]
[384847174,1757590238249,-301.444973,0.0002684,7]
[384847175,1757590238258,-703.13910504,0.0002684,7]
[384847184,1757590238352,-1140.38156996,0.0002684,7]
[384847186,1757590238361,-1843.520675,0.0002684,7]
[384847188,1757590238370,-151.0,0.0002684,7]
[384847189,1757590238379,-1843.520675,0.0002684,7]
[384847191,1757590238388,-151.0,0.0002684,7]
[384847193,1757590238398,-1843.520675,0.0002684,7]
[384847195,1757590238407,-151.0,0.0002684,7]
[384847196,1757590238417,-151.0,0.0002684,7]
[384847198,1757590238428,-212.89373682,0.0002684,7]
[384847200,1757590238437,-151.0,0.0002684,7]
[384847202,1757590238446,-151.0,0.0002684,7]
[384847204,1757590238456,-112.95369998,0.0002684,7]
[384847207,1757590238491,-38.04630002,0.0002684,7]
[384847209,1757590238501,-151.0,0.0002684,7]
[384847211,1757590238510,-151.0,0.0002684,7]
[384847213,1757590238520,-269.868341,0.0002684,7]
[384847215,1757590238528,-151.0,0.0002684,7]
[384847216,1757590238537,-151.0,0.0002684,7]
[384847218,1757590238546,-151.0,0.0002684,7]
[384847220,1757590238555,-151.0,0.0002684,7]
[384847222,1757590238564,-151.0,0.0002684,7]
[384847224,1757590238574,-151.0,0.0002684,7]
[384847225,1757590238583,-151.0,0.0002684,7]
[384847227,1757590238592,-151.0,0.0002684,7]
[384847229,1757590238601,-151.0,0.0002684,7]
[384847230,1757590238610,-151.0,0.0002684,7]
[384847232,1757590238618,-240.488936,0.0002684,7]
[384847234,1757590238628,-151.0,0.0002684,7]
[384847236,1757590238638,-151.0,0.0002684,7]
[384847237,1757590238647,-19655.81503027,0.0002684,2]
[384847240,1757590238667,-1589.91276264,0.0002684,2]
[384847243,1757590238682,-5798.00690854,0.0002684,2]
[384847247,1757590238720,-727.20580721,0.0002684,2]
[384847250,1757590238739,-3822.0,0.0002684,2]
[384847252,1757590238750,-2304.66,0.0002684,2]
[384847330,1757590239725,-280.42970238,0.0002684,7]
[384847333,1757590239748,-234.94559478,0.0002684,7]
[384847335,1757590239758,-355.75524941,0.0002684,2]
[384847338,1757590239770,-5484.44935046,0.0002684,2]
[384847342,1757590239804,-329.0207687,0.0002684,2]
[384847345,1757590239815,-1994.01324288,0.0002684,2]
[384847385,1757590240145,-1363.76358095,0.0002684,2]
[384847643,1757590242717,-4144.73524084,0.0002684,2]
[384847645,1757590242727,-8855.26475916,0.0002684,2]
[384847659,1757590242855,-42.27081794,0.0002684,2]
[384847668,1757590242941,-338.21309304,0.0002684,2]
[384847671,1757590242956,-5007.25259145,0.0002684,2]
[384847681,1757590243042,-5087.67275333,0.0002684,2]
[384847949,1757590245590,-445.38911637,0.0002684,7]
[384847956,1757590245646,-61.13139863,0.0002684,7]
[384847958,1757590245655,-5563.86860137,0.0002684,2]
[384849193,1757590264208,1946.52449578,0.00029524,120]
[384849194,1757590264772,300.0,0.00029524,120]
[384849195,1757590292347,196.49,0.00012989,2]
[384849197,1757590462643,300.0,0.00012988,2]
[384849206,1757590635572,5340.99858917,0.00030137,120]
[384849245,1757591010555,200.0,0.00012884,2]
[384849267,1757591149410,163.14,0.00025342,120]
[384849313,1757591372128,-840.84649775,0.00022228,2]
[384849314,1757591372149,-1087.0,0.00023398,2]
[384849315,1757591372170,-1087.0,0.00024629,2]
[384849316,1757591372192,-1828.12328425,0.000249,2]
[384849336,1757591431951,-2241.36648116,0.000249,2]
[384849337,1757591431961,-204.0,0.0002499,2]
[384849338,1757591431970,-163.95029505,0.000252,2]
[384849339,1757591431979,-367.95,0.00025259,2]
[384849340,1757591431988,-666.0,0.00025528,3]
[384849341,1757591431998,-222.12,0.00025601,2]
[384849342,1757591432008,-161.67,0.00025668,2]
[384849343,1757591432018,-469.24,0.00025739,2]
[384849344,1757591432027,-204.0,0.0002577,2]
[384849345,1757591432036,-411.0,0.000258,2]
[384849346,1757591432045,-519.0,0.00025869,2]
[384849347,1757591432054,-157.67,0.00025891,2]
[384849348,1757591432063,-1087.0,0.00025925,2]
[384849349,1757591432073,-1200.0,0.00025998,2]
[384849350,1757591432082,-300.0,0.00025999,2]
[384849351,1757591432091,-2080.8011514,0.00026,2]
[384849352,1757591432100,-2000.0,0.00026,2]
[384849353,1757591432109,-1299.02,0.00026,2]
[384849354,1757591432118,-1386.08,0.00026028,2]
[384849355,1757591432127,-518.0,0.00026169,7]
[384849356,1757591432136,-518.0,0.00026175,7]
[384849357,1757591432145,-753.83,0.000262,6]
[384849358,1757591432154,-248.71531821,0.00026221,2]
[384849359,1757591432164,-518.0,0.00026363,2]
[384849360,1757591432173,-518.0,0.00026387,2]
[384849361,1757591432182,-22141.65696643,0.000265,2]
[384849362,1757591432194,-17896.34303357,0.000265,2]
[384849363,1757591432203,-367.95,0.00026522,2]
[384849364,1757591432212,-204.0,0.0002654,2]
[384849365,1757591432222,-400.0,0.000266,9]
[384849366,1757591432231,-23276.1184452,0.00026678,2]
[384849367,1757591432241,-6941.84861934,0.00026694,2]
[384849368,1757591432250,-753.35876928,0.000267,2]
[384849369,1757591432259,-900.0,0.000267,9]
[384849370,1757591432268,-365.0440065,0.00026731,2]
[384849371,1757591432277,-1509.54874028,0.00026773,2]
[384849372,1757591432286,-590.75090043,0.00026789,2]
[384849373,1757591432295,-1575.09434357,0.0002679,2]
[384849374,1757591432304,-78341.75367644,0.0002679,2]
[384849375,1757591432320,-9166.03850788,0.0002679,2]
[384849382,1757591432496,-289.89119031,0.0002679,2]
[384849398,1757591437948,-11128.72158084,0.0002679,3]
[384849399,1757591438054,-2696.92625174,0.0002679,3]
[384849565,1757591439875,-1685.37791734,0.0002679,3]
[384849579,1757591439998,-483.87333511,0.0002679,3]
[384849584,1757591440040,-8012.28380009,0.0002679,3]
[384849607,1757591440250,-623.88836904,0.0002679,3]
[384849888,1757591442963,-2705.01199897,0.0002679,3]
[384849893,1757591443005,-1430.07539545,0.0002679,3]
[384850182,1757591445821,-2239.17373235,0.00026678,2]
[384850184,1757591445875,-451.05742897,0.00026678,2]
[384850197,1757591445988,-11806.73618279,0.00026678,2]
[384850239,1757591446373,-19063.50026258,0.00026678,2]
[384850242,1757591446384,-7887.74863912,0.00026678,2]
[384850244,1757591446397,-4557.38643829,0.00026678,2]
[384850248,1757591446419,-2164.79233945,0.00026678,2]
[384850250,1757591446432,-1116.62771898,0.00026678,2]
[384850526,1757591505955,162.4,0.00016438,2]
[384850538,1757591613903,200.0,0.00016307,2]
[384850585,1757592151364,-1331.0,0.000222,2]
[384850589,1757592187412,168.51,0.00025431,120]
[384850590,1757592187638,168.51,0.0002861,120]
[384850592,1757592213136,1000.0,0.00027397,120]
[384850613,1757592591955,162.4,0.00016438,2]
[384850641,1757592632661,-614.37390575,0.00022,2]
[384850642,1757592632700,-20.02609425,0.00022,2]
[384850643,1757592632710,-200.0,0.00022022,2]
[384850644,1757592632720,-250.0,0.00022124,2]
[384850645,1757592632729,-500.0,0.00022225,2]